bitfinex/quotes_SOLUSD_20220130
["timestamp","ask_amount","ask_price","bid_price","bid_amount"]
[1643563053263,0.35,94.609,94.572,0.25]
[1643563054463,0.1,94.609,94.572,0.25]
[1643563055865,0.1178668,94.647,94.573,45.0]
[1643563056066,0.1178668,94.648,94.583,6.0]
[1643563056267,0.1178668,94.648,94.584,0.25]
[1643563056466,15.857,94.64,94.584,0.25]
[1643563056666,15.857,94.64,94.584,6.25]
[1643563056868,15.857,94.64,94.585,2.75708968]
[1643563057069,15.857,94.64,94.595,6.0]
[1643563057271,15.857,94.64,94.596,0.25]
[1643563058269,0.1178668,94.649,94.596,0.25]
[1643563058469,0.1178668,94.649,94.597,2.41117427]
[1643563058668,0.1178668,94.658,94.597,2.41117427]
[1643563058868,0.1178668,94.658,94.595,6.0]
[1643563058869,0.3678668,94.658,94.607,6.0]
[1643563059069,0.3678668,94.658,94.6,15.855]
[1643563059070,0.3678668,94.658,94.61,6.0]
[1643563059270,0.3678668,94.658,94.611,0.25]
[1643563059571,0.3678668,94.658,94.611,8.00180262]
[1643563059974,0.3678668,94.658,94.621,6.0]
[1643563060473,15.854,94.66,94.622,0.25]
[1643563060474,0.3678668,94.659,94.622,0.25]
[1643563061475,0.3678668,94.659,94.621,6.0]
[1643563061476,15.855,94.65,94.621,6.0]
[1643563061674,0.1178668,94.649,94.621,6.0]
[1643563061973,0.3678668,94.649,94.611,7.75180262]
[1643563062173,0.3678668,94.649,94.612,0.25]
[1643563062373,0.3678668,94.649,94.621,6.0]
[1643563062578,0.3678668,94.649,94.612,0.25]
[1643563062778,15.856,94.64,94.612,0.25]
[1643563064776,15.856,94.64,94.59,6.0]
[1643563065176,15.856,94.64,94.591,0.25]
[1643563065574,15.856,94.64,94.591,9.43930297]
[1643563065975,15.856,94.64,94.601,6.0]
[1643563066577,0.25,94.639,94.601,6.0]
[1643563066880,15.858,94.63,94.601,6.0]
[1643563067879,15.858,94.63,94.602,0.25]
[1643563068977,15.858,94.63,94.591,9.18930297]
[1643563068978,15.858,94.63,94.592,0.25]
[1643563070179,15.858,94.63,94.601,6.0]
[1643563070380,15.858,94.63,94.602,0.25]
[1643563070982,15.858,94.63,94.57,15.86]
[1643563070983,0.25,94.629,94.57,15.86]
[1643563071180,0.25,94.629,94.474,95.53937283]
[1643563071181,15.861,94.62,94.537,22.7256]
[1643563071379,0.25,94.619,94.537,22.7256]
[1643563071581,0.25,94.619,94.547,6.0]
[1643563071981,28.31615437,94.619,94.548,8.72602219]
[1643563072280,15.865,94.6,94.558,6.0]
[1643563072781,15.865,94.6,94.559,0.25]
[1643563074881,15.862,94.61,94.559,0.25]
[1643563075081,24.0857,94.619,94.559,0.25]
[1643563075281,24.0857,94.619,94.56,2.41117427]
[1643563075681,24.0857,94.619,94.57,6.0]
[1643563075882,24.0857,94.619,94.571,2.03287011]
[1643563076084,24.0857,94.619,94.581,6.0]
[1643563076284,0.1178668,94.645,94.582,0.25]
[1643563076484,15.86,94.62,94.582,0.25]
[1643563076884,0.25,94.619,94.582,0.25]
[1643563077687,15.86,94.62,94.582,0.25]
[1643563078886,15.859,94.63,94.582,0.25]
[1643563079386,0.1178668,94.642,94.583,2.41117427]
[1643563079586,24.1777,94.649,94.583,2.41117427]
[1643563079587,0.1178668,94.648,94.593,6.0]
[1643563079786,0.1178668,94.648,94.594,0.25]
[1643563079987,15.857,94.64,94.594,8.97602219]
[1643563080391,15.857,94.64,94.604,6.0]
[1643563080591,20.24668195,94.64,94.604,6.0]
[1643563080789,15.857,94.64,94.605,0.25]
[1643563081588,0.1178668,94.648,94.605,0.25]
[1643563082688,0.1178668,94.648,94.61,6.0]
[1643563082889,0.1178668,94.648,94.611,0.25]
[1643563083190,0.1178668,94.648,94.611,2.03287011]
[1643563083589,0.1178668,94.648,94.621,6.0]
[1643563083788,0.1178668,94.648,94.622,0.25]
[1643563083988,15.856,94.64,94.621,6.0]
[1643563084389,15.856,94.64,94.611,1.78287011]
[1643563084594,15.856,94.64,94.621,6.0]
[1643563084815,0.1178668,94.645,94.621,6.0]
[1643563084991,15.855,94.65,94.621,6.0]
[1643563085194,0.1178668,94.649,94.621,6.0]
[1643563086393,0.3678668,94.649,94.621,6.0]
[1643563086591,0.3678668,94.649,94.581,24.9042]
[1643563086592,15.856,94.64,94.581,24.9042]
[1643563086793,15.856,94.64,94.612,0.25]
[1643563087796,15.856,94.64,94.593,0.25]
[1643563088002,15.856,94.64,94.602,6.0]
[1643563088401,15.856,94.64,94.603,0.25]
[1643563088600,0.1178668,94.648,94.603,0.25]
[1643563088800,0.1178668,94.649,94.603,0.25]
[1643563090101,0.1178668,94.649,94.611,1.24953014]
[1643563090300,0.1178668,94.649,94.612,0.25]
[1643563090301,15.856,94.64,94.612,0.25]
[1643563090502,15.856,94.64,94.621,6.0]
[1643563090705,15.856,94.64,94.612,0.25]
[1643563092104,15.856,94.64,94.621,6.0]
[1643563092523,15.856,94.64,94.612,0.25]
[1643563093226,15.856,94.64,94.621,6.0]
[1643563093627,15.9728668,94.65,94.621,6.0]
[1643563093825,0.3678668,94.649,94.621,6.0]
[1643563095027,15.856,94.64,94.621,6.0]
[1643563095225,15.856,94.64,94.612,0.25]
[1643563096427,15.856,94.64,94.58,15.858]
[1643563096629,5.41154251,94.646,94.591,6.0]
[1643563096630,15.859,94.63,94.591,6.0]
[1643563097429,15.859,94.63,94.592,8.65850633]
[1643563097629,15.859,94.63,94.602,6.0]
[1643563097829,15.859,94.63,94.603,0.25]
[1643563098230,0.25,94.639,94.603,0.25]
[1643563098532,15.857,94.64,94.603,0.25]
[1643563098730,0.25,94.639,94.603,0.25]
[1643563103033,0.1178668,94.649,94.603,0.25]
[1643563103233,1.43363395,94.654,94.603,0.25]
[1643563103434,0.1178668,94.658,94.611,1.85038597]
[1643563103834,0.3678668,94.658,94.612,0.25]
[1643563105037,15.855,94.65,94.612,0.25]
[1643563105236,15.855,94.65,94.564,1.46758346]
[1643563105237,0.3678668,94.649,94.565,1.46758346]
[1643563105434,0.3678668,94.649,94.561,22.5324]
[1643563105635,0.25,94.649,94.581,6.0]
[1643563106035,15.859,94.63,94.581,6.0]
[1643563106238,13.53658079,94.629,94.582,8.30076912]
[1643563106640,52.871,94.63,94.592,6.0]
[1643563106836,52.871,94.63,94.593,0.25]
[1643563107037,52.871,94.63,94.583,0.25]
[1643563107439,15.862,94.62,94.583,0.25]
[1643563107638,21.862,94.62,94.583,0.25]
[1643563108045,21.862,94.62,94.571,6.0]
[1643563108339,43.99378122,94.619,94.572,0.25]
[1643563108540,15.865,94.61,94.571,6.0]
[1643563109240,105.5,94.609,94.571,6.0]
[1643563109442,15.866,94.6,94.571,6.0]
[1643563109640,15.866,94.6,94.552,6.0]
[1643563109841,15.866,94.6,94.553,0.25]
[1643563110643,15.866,94.6,94.559,6.0]
[1643563110940,15.866,94.6,94.56,0.25]
[1643563111740,15.865,94.59,94.56,0.25]
[1643563112142,15.865,94.59,94.559,6.0]
[1643563112342,15.865,94.59,94.56,0.25]
[1643563112941,15.865,94.59,94.549,7.43331937]
[1643563113141,15.865,94.59,94.53,15.867]
[1643563113142,0.25,94.589,94.55,0.25]
[1643563113342,15.867,94.58,94.55,0.25]
[1643563113542,0.25,94.579,94.523,2.41950752]
[1643563113844,0.25,94.579,94.517,1.46758346]
[1643563114041,41.26123119,94.579,94.516,7.71657137]
[1643563114242,15.869,94.57,94.525,6.0]
[1643563114447,15.869,94.57,94.516,7.71657137]
[1643563114448,15.869,94.57,94.526,6.0]
[1643563114644,41.26123119,94.579,94.526,6.0]
[1643563114853,23.5087,94.589,94.527,0.25]
[1643563115044,23.5087,94.589,94.53,15.867]
[1643563115443,15.865,94.59,94.54,6.0]
[1643563115644,22.7733,94.627,94.541,6.0]
[1643563115846,0.25,94.626,94.542,108.29232093]
[1643563116046,0.25,94.626,94.552,6.0]
[1643563116245,0.25,94.626,94.561,7.71657137]
[1643563116647,0.25,94.626,94.571,6.0]
[1643563116845,15.862,94.61,94.572,0.25]
[1643563117248,0.1178668,94.642,94.572,105.75]
[1643563117447,22.7751668,94.657,94.573,26.35240752]
[1643563117747,0.1178668,94.656,94.583,6.0]
[1643563118148,0.1178668,94.656,94.584,11.46182845]
[1643563118347,0.1178668,94.656,94.584,5.46182845]
[1643563118575,15.855,94.65,94.594,6.0]
[1643563118750,0.1178668,94.649,94.594,6.0]
[1643563118954,0.1178668,94.649,94.595,6.25]
[1643563119350,0.3678668,94.649,94.595,6.25]
[1643563119550,0.3678668,94.649,94.6,15.855]
[1643563119750,0.3678668,94.649,94.601,7.71657137]
[1643563119951,0.3678668,94.649,94.61,6.0]
[1643563120152,0.3678668,94.649,94.611,6.0]
[1643563120352,0.3678668,94.649,94.612,0.25]
[1643563120751,15.856,94.64,94.612,0.25]
[1643563121755,0.1178668,94.644,94.612,0.25]
[1643563121957,15.856,94.65,94.612,0.25]
[1643563122156,0.1178668,94.649,94.612,0.25]
[1643563122357,0.3678668,94.649,94.612,0.25]
[1643563123460,15.856,94.64,94.612,0.25]
[1643563123661,0.1178668,94.648,94.612,0.25]
[1643563123961,0.1178668,94.656,94.612,0.25]
[1643563124163,0.1178668,94.656,94.62,6.0]
[1643563124360,0.1178668,94.656,94.621,0.25]
[1643563124761,0.1178668,94.656,94.621,3.04232093]
[1643563125163,0.1178668,94.659,94.622,0.25]
[1643563125363,0.1178668,94.663,94.622,0.25]
[1643563125564,15.855,94.65,94.622,0.25]
[1643563125764,0.1178668,94.649,94.622,0.25]
[1643563126188,0.3678668,94.663,94.601,22.6355]
[1643563126383,22.9587668,94.663,94.581,23.1005]
[1643563126691,15.857,94.64,94.591,6.0]
[1643563126985,0.25,94.639,94.59,6.0]
[1643563127182,0.25,94.639,94.591,7.49432008]
[1643563127383,2.16803885,94.649,94.591,7.49432008]
[1643563127585,15.861,94.63,94.601,6.0]
[1643563127787,24.6363,94.651,94.602,0.25]
[1643563127788,0.1178668,94.648,94.602,0.25]
[1643563127986,24.6363,94.651,94.602,0.25]
[1643563127987,0.1178668,94.65,94.602,0.25]
[1643563128186,0.3678668,94.65,94.602,0.25]
[1643563128587,15.857,94.64,94.591,7.49432008]
[1643563128788,0.25,94.639,94.592,0.25]
[1643563129390,0.25,94.639,94.601,6.0]
[1643563130091,15.86,94.63,94.601,6.0]
[1643563130290,0.25,94.629,94.591,7.49432008]
[1643563130690,0.25,94.629,94.601,6.0]
[1643563131695,0.25,94.629,94.591,7.49432008]
[1643563131893,0.25,94.629,94.592,0.25]
[1643563132094,0.25,94.629,94.591,7.49432008]
[1643563132095,15.86,94.62,94.591,7.49432008]
[1643563133297,15.86,94.62,94.592,0.25]
[1643563134300,15.859,94.63,94.592,0.25]
[1643563135498,15.859,94.63,94.601,6.0]
[1643563135900,15.859,94.63,94.602,0.25]
[1643563136903,15.859,94.63,94.591,7.49432008]
[1643563136904,15.859,94.63,94.592,0.25]
[1643563137904,15.859,94.63,94.601,6.0]
[1643563138307,15.859,94.63,94.602,0.25]
[1643563139305,0.1178668,94.647,94.602,0.25]
[1643563139508,43.49897507,94.659,94.602,0.25]
[1643563139706,0.3678668,94.658,94.602,0.25]
[1643563140209,17.04601344,94.657,94.592,0.25]
[1643563140412,0.3678668,94.656,94.592,0.25]
[1643563140609,15.856,94.65,94.592,0.25]
[1643563140810,0.3678668,94.649,94.592,0.25]
[1643563141013,0.1178668,94.656,94.601,6.0]
[1643563141216,0.1178668,94.657,94.601,6.0]
[1643563141410,0.1178668,94.657,94.603,6.0]
[1643563141611,0.1178668,94.657,94.612,6.0]
[1643563141812,0.1,94.668,94.613,3.14670541]
[1643563142015,1.4577159,94.685,94.623,6.0]
[1643563142211,1.4577159,94.697,94.623,6.0]
[1643563142412,1.4577159,94.697,94.624,25.5699437]
[1643563142611,17.09357628,94.696,94.634,6.0]
[1643563142812,0.1,94.695,94.635,23.1505]
[1643563143014,0.1,94.695,94.645,6.0]
[1643563143211,0.1,94.697,94.645,6.0]
[1643563143411,0.1,94.697,94.646,6.25]
[1643563143412,17.09357628,94.694,94.646,6.25]
[1643563143612,0.1,94.693,94.646,6.25]
[1643563144014,1.75563662,94.704,94.646,6.25]
[1643563144215,15.849,94.69,94.646,6.25]
[1643563144414,0.1,94.689,94.646,6.25]
[1643563146133,0.1,94.699,94.646,6.25]
[1643563146335,0.29792072,94.704,94.65,15.847]
[1643563146533,0.29792072,94.704,94.66,6.0]
[1643563146733,0.29792072,94.704,94.661,2.89670541]
[1643563146934,17.08192648,94.703,94.661,2.89670541]
[1643563147136,15.847,94.7,94.661,2.89670541]
[1643563147333,0.1,94.699,94.661,2.89670541]
[1643563147533,0.1,94.702,94.661,2.89670541]
[1643563147934,0.29792072,94.704,94.661,2.89670541]
[1643563148336,0.29792072,94.704,94.662,0.25]
[1643563148535,15.848,94.7,94.662,0.25]
[1643563148736,0.1,94.699,94.662,0.25]
[1643563148936,0.29792072,94.704,94.671,6.0]
[1643563149538,15.847,94.7,94.671,6.0]
[1643563149738,0.29792072,94.704,94.671,6.0]
[1643563149739,0.1,94.699,94.671,6.0]
[1643563149936,0.29792072,94.704,94.671,6.0]
[1643563150535,15.848,94.7,94.671,6.0]
[1643563150736,0.1,94.699,94.671,6.0]
[1643563151138,0.35,94.699,94.671,6.0]
[1643563152243,0.25,94.699,94.671,6.0]
[1643563152440,0.29792072,94.704,94.671,6.0]
[1643563153340,15.847,94.7,94.671,6.0]
[1643563153541,0.1,94.699,94.671,6.0]
[1643563153741,0.25,94.699,94.671,6.0]
[1643563154041,0.29792072,94.704,94.671,6.0]
[1643563154441,15.847,94.7,94.671,6.0]
[1643563154640,0.1,94.699,94.671,6.0]
[1643563154843,0.1,94.699,94.672,0.25]
[1643563156743,15.849,94.69,94.672,0.25]
[1643563156943,15.849,94.69,94.661,2.89670541]
[1643563156944,0.1,94.689,94.662,0.25]
[1643563158047,0.29792072,94.704,94.662,0.25]
[1643563158646,0.29792072,94.704,94.671,6.0]
[1643563158846,15.847,94.7,94.672,0.25]
[1643563159046,0.1,94.699,94.672,0.25]
[1643563159952,52.828,94.72,94.672,0.25]
[1643563159953,0.2706566,94.721,94.672,0.25]
[1643563160351,0.2706566,94.721,94.669,6.0]
[1643563160352,0.2706566,94.721,94.67,23.0827]
[1643563160549,0.2706566,94.721,94.68,6.0]
[1643563160754,0.2706566,94.721,94.68,21.842]
[1643563160950,0.2706566,94.721,94.681,0.25]
[1643563162352,0.2706566,94.721,94.69,15.84]
[1643563162553,0.2706566,94.721,94.7,6.0]
[1643563162950,0.2706566,94.721,94.701,0.25]
[1643563163953,0.2706566,94.721,94.682,23.6494]
[1643563164153,0.2706566,94.721,94.692,6.0]
[1643563164352,0.2706566,94.721,94.693,23.6494]
[1643563164552,0.2706566,94.721,94.703,6.0]
[1643563164851,0.2706566,94.721,94.704,0.25]
[1643563168554,0.2706566,94.721,94.71,6.0]
[1643563168954,0.2706566,94.721,94.711,0.25]
[1643563170159,0.2706566,94.721,94.71,6.0]
[1643563170356,0.2706566,94.721,94.711,0.25]
[1643563171558,0.2706566,94.721,94.704,0.25]
[1643563171958,0.2706566,94.721,94.691,0.25]
[1643563173256,0.2706566,94.721,94.682,6.0]
[1643563173657,0.2706566,94.721,94.61,2.93819515]
[1643563173658,0.2706566,94.721,94.68,6.0]
[1643563174158,0.2706566,94.721,94.67,6.0]
[1643563174457,0.2706566,94.721,94.657,6.0]
[1643563174658,0.2706566,94.721,94.658,6.0]
[1643563174857,0.2706566,94.721,94.658,6.25]
[1643563175060,15.844,94.72,94.658,6.25]
[1643563175361,24.4701,94.719,94.658,6.25]
[1643563176460,24.4701,94.719,94.66,15.845]
[1643563176861,24.4701,94.719,94.67,6.0]
[1643563177360,24.4701,94.719,94.671,0.25]
[1643563177963,15.845,94.72,94.671,0.25]
[1643563178161,15.845,94.72,94.68,6.0]
[1643563178361,15.845,94.72,94.681,0.25]
[1643563179163,42.75239688,94.719,94.681,0.25]
[1643563179363,43.00239688,94.719,94.68,6.0]
[1643563179963,0.25,94.719,94.68,6.0]
[1643563180766,0.25,94.719,94.681,0.25]
[1643563181266,0.2706566,94.721,94.681,0.25]
[1643563183671,0.2706566,94.721,94.681,6.25]
[1643563184070,15.844,94.72,94.681,6.25]
[1643563184272,0.25,94.719,94.681,6.25]
[1643563184471,0.25,94.719,94.681,0.25]
[1643563185073,0.25,94.719,94.658,6.0]
[1643563185274,0.25,94.719,94.659,0.25]
[1643563186092,0.25,94.719,94.67,15.844]
[1643563186292,0.2706566,94.721,94.671,0.25]
[1643563186494,0.2706566,94.721,94.68,6.0]
[1643563186692,0.2706566,94.721,94.68,21.07]
[1643563186892,0.2706566,94.721,94.681,22.8589]
[1643563187092,0.2706566,94.721,94.691,6.0]
[1643563187293,0.2706566,94.721,94.692,0.25]
[1643563188396,0.2706566,94.721,94.7,6.0]
[1643563188894,0.2706566,94.721,94.701,0.25]
[1643563190497,0.2706566,94.721,94.691,0.25]
[1643563191500,0.2706566,94.721,94.7,6.0]
[1643563191998,0.2706566,94.721,94.681,6.0]
[1643563192402,0.2706566,94.721,94.682,0.25]
[1643563193998,0.2706566,94.721,94.69,6.0]
[1643563194505,0.2706566,94.721,94.691,0.25]
[1643563195299,0.2706566,94.721,94.681,0.25]
[1643563195900,0.2706566,94.721,94.672,0.25]
[1643563196099,0.2706566,94.721,94.681,6.0]
[1643563196301,0.2706566,94.721,94.682,0.25]
[1643563197504,0.2706566,94.721,94.681,6.0]
[1643563198506,0.2706566,94.721,94.69,6.0]
[1643563198909,0.2706566,94.721,94.691,0.25]
[1643563199606,0.2706566,94.721,94.69,6.0]
[1643563199810,0.2706566,94.721,94.691,0.25]
[1643563200507,0.2706566,94.721,94.691,6.25]
[1643563201411,0.2706566,94.721,94.681,24.7411]
[1643563202615,0.2706566,94.721,94.691,6.0]
[1643563202818,0.2706566,94.721,94.692,0.25]
[1643563207542,0.2706566,94.721,94.691,6.0]
[1643563207743,0.2706566,94.721,94.68,15.841]
[1643563207944,0.2706566,94.721,94.69,6.0]
[1643563208343,0.2706566,94.721,94.682,6.0]
[1643563209142,0.2706566,94.721,94.683,6.0]
[1643563210143,0.2706566,94.721,94.684,0.25]
[1643563210343,0.2706566,94.721,94.69,15.84]
[1643563210543,0.2706566,94.721,94.7,6.0]
[1643563210944,0.2706566,94.721,94.701,0.25]
[1643563212852,0.2706566,94.721,94.683,6.0]
[1643563213052,0.2706566,94.721,94.671,15.813]
[1643563213251,0.2706566,94.721,94.674,0.25]
[1643563214055,15.844,94.72,94.683,6.0]
[1643563214254,0.2706566,94.721,94.684,0.25]
[1643563216461,0.2706566,94.721,94.69,6.0]
[1643563216860,0.2706566,94.721,94.691,0.25]
[1643563217466,0.2706566,94.721,94.7,6.0]
[1643563217661,0.2706566,94.721,94.691,0.25]
[1643563217861,0.2706566,94.721,94.685,0.25]
[1643563218064,0.2706566,94.721,94.694,6.0]
[1643563218265,0.2706566,94.721,94.695,0.25]
[1643563218764,0.2706566,94.721,94.695,6.25]
[1643563219166,0.2706566,94.721,94.7,6.0]
[1643563219364,0.2706566,94.721,94.701,0.25]
[1643563224170,0.2706566,94.721,94.71,6.0]
[1643563224374,0.2706566,94.721,94.711,0.25]
[1643563224570,0.2706566,94.721,94.72,6.0]
[1643563224771,0.2706566,94.721,94.72,0.25]
[1643563225773,0.2706566,94.721,94.7,15.838]
[1643563225973,0.2706566,94.721,94.711,0.25]
[1643563227272,0.2706566,94.721,94.701,0.25]
[1643563228979,0.2706566,94.721,94.69,15.84]
[1643563229174,0.2706566,94.721,94.691,0.25]
[1643563229675,0.2706566,94.721,94.7,6.0]
[1643563229872,0.2706566,94.721,94.701,0.25]
[1643563230074,0.2706566,94.721,94.691,0.25]
[1643563231200,0.2706566,94.721,94.69,15.84]
[1643563232403,0.2706566,94.721,94.68,15.842]
[1643563232702,0.2706566,94.721,94.685,0.25]
[1643563233502,0.2706566,94.721,94.68,15.842]
[1643563234104,0.2706566,94.721,94.694,6.0]
[1643563234905,0.2706566,94.721,94.695,0.25]
[1643563235606,0.2706566,94.721,94.685,0.25]
[1643563237010,0.2706566,94.721,94.681,0.25]
[1643563237212,0.2706566,94.721,94.671,15.813]
[1643563237213,0.2706566,94.721,94.672,0.25]
[1643563237809,0.2706566,94.721,94.67,15.843]
[1643563238010,25.71608897,94.719,94.65,1.46758346]
[1643563238212,105.5,94.718,94.65,15.07]
[1643563238410,105.75,94.718,94.65,15.07]
[1643563238609,105.75,94.718,94.647,15.6396]
[1643563238810,0.25,94.718,94.647,15.6396]
[1643563239011,0.25,94.718,94.657,6.0]
[1643563239311,15.848,94.7,94.658,0.25]
[1643563239512,37.6714402,94.699,94.64,17.31558346]
[1643563239713,37.6714402,94.699,94.64,1.46758346]
[1643563239714,105.5,94.698,94.64,1.46758346]
[1643563239911,0.25,94.697,94.636,1.46758346]
[1643563240111,0.25,94.697,94.631,1.46758346]
[1643563240313,0.25,94.697,94.631,15.9516]
[1643563240615,15.849,94.69,94.631,15.9516]
[1643563240813,15.849,94.69,94.632,0.25]
[1643563241012,15.849,94.69,94.631,15.9516]
[1643563241013,15.849,94.69,94.641,6.0]
[1643563241215,0.25,94.689,94.63,15.85]
[1643563242014,15.85,94.68,94.628,15.6195]
[1643563242217,50.09928897,94.679,94.624,23.3861]
[1643563242416,50.34928897,94.679,94.624,23.3861]
[1643563242615,50.34928897,94.679,94.625,0.25]
[1643563243217,50.34928897,94.679,94.62,30.922]
[1643563243420,15.853,94.67,94.62,15.07]
[1643563243821,0.25,94.669,94.62,15.07]
[1643563244620,0.25,94.669,94.621,0.25]
[1643563244826,37.6714402,94.659,94.621,0.25]
[1643563246023,15.855,94.65,94.621,0.25]
[1643563246923,0.25,94.649,94.59,15.857]
[1643563247123,15.859,94.64,94.577,1.46758346]
[1643563247325,25.71608897,94.639,94.576,22.9783]
[1643563247724,0.25,94.638,94.576,22.9783]
[1643563247924,24.7785,94.638,94.576,22.9783]
[1643563248323,15.858,94.63,94.576,22.9783]
[1643563249928,15.858,94.63,94.56,15.07]
[1643563250126,15.858,94.63,94.56,30.6128]
[1643563250330,15.858,94.63,94.57,6.0]
[1643563251228,15.858,94.63,94.571,0.25]
[1643563252625,15.858,94.63,94.571,6.25]
[1643563252827,15.861,94.62,94.571,6.25]
[1643563253025,37.6714402,94.619,94.571,6.25]
[1643563253626,37.6714402,94.619,94.58,6.0]
[1643563253828,37.6714402,94.619,94.581,0.25]
[1643563254429,15.861,94.61,94.581,0.25]
[1643563255228,15.861,94.61,94.572,0.25]
[1643563255629,37.6714402,94.619,94.572,0.25]
[1643563256029,15.861,94.62,94.58,6.0]
[1643563256230,24.5285,94.638,94.58,6.0]
[1643563256437,15.07,94.69,94.581,0.25]
[1643563256729,23.4557,94.676,94.6,15.856]
[1643563256930,105.5,94.675,94.6,15.856]
[1643563257129,44.97252717,94.674,94.61,6.0]
[1643563257354,44.97252717,94.674,94.611,0.25]
[1643563257531,105.5,94.673,94.611,0.25]
[1643563257929,0.25,94.672,94.611,0.25]
[1643563258130,18.415002,94.649,94.611,0.25]
[1643563258530,18.415002,94.649,94.6,6.0]
[1643563258933,18.415002,94.649,94.601,0.25]
[1643563259131,15.857,94.64,94.601,0.25]
[1643563259332,18.415002,94.649,94.601,0.25]
[1643563259533,18.415002,94.649,94.61,6.0]
[1643563259934,18.415002,94.649,94.611,0.25]
[1643563260334,15.856,94.64,94.611,0.25]
[1643563260938,18.415002,94.649,94.611,0.25]
[1643563261139,18.415002,94.649,94.601,0.25]
[1643563261541,18.415002,94.649,94.6,15.855]
[1643563261941,18.415002,94.649,94.601,0.25]
[1643563262643,15.857,94.64,94.601,0.25]
[1643563263040,15.857,94.64,94.602,6.0]
[1643563263340,15.857,94.64,94.603,0.25]
[1643563268268,15.857,94.64,94.602,6.0]
[1643563269672,15.857,94.64,94.603,0.25]
[1643563270474,22.7387,94.648,94.603,0.25]
[1643563270672,37.17740325,94.647,94.603,0.25]
[1643563270970,37.17740325,94.647,94.61,6.0]
[1643563271370,37.17740325,94.647,94.611,0.25]
[1643563271771,0.25,94.646,94.61,6.0]
[1643563271971,15.857,94.64,94.61,6.0]
[1643563272172,15.857,94.64,94.602,6.0]
[1643563273173,15.857,94.64,94.603,0.25]
[1643563278879,76.3355,94.719,94.603,0.25]
[1643563279081,23.8901,94.676,94.603,24.8458]
[1643563279479,23.8901,94.676,94.613,6.0]
[1643563279880,33.59671479,94.675,94.614,23.7778]
[1643563280279,0.25,94.674,94.614,23.7778]
[1643563281181,23.8901,94.676,94.62,15.852]
[1643563281381,52.832,94.71,94.624,6.0]
[1643563281580,52.832,94.71,94.621,0.25]
[1643563281581,23.9941159,94.709,94.63,6.0]
[1643563281781,23.9941159,94.709,94.64,15.07]
[1643563281980,22.8848,94.728,94.64,16.53758346]
[1643563282180,60.53813572,94.72,94.65,6.0]
[1643563282381,15.844,94.72,94.651,0.25]
[1643563283081,15.844,94.72,94.651,6.25]
[1643563283283,15.844,94.72,94.66,6.0]
[1643563283683,0.25,94.719,94.661,6.25]
[1643563283883,15.846,94.71,94.661,0.25]
[1643563285486,0.25,94.719,94.67,15.844]
[1643563285890,0.25,94.719,94.68,6.0]